bitfinex/quotes_SOLUSD_20251115
["timestamp","ask_amount","ask_price","bid_price","bid_amount"]
[1763250656190,3.44228506,139.7,139.65,9.12]
[1763250656354,2.77228506,139.67,139.65,9.12]
[1763250657164,3.44228506,139.68,139.65,9.12]
[1763250657742,3.44228506,139.68,139.65,8.46]
[1763250657942,7.82986287,139.67,139.63,7.16178471]
[1763250658137,10.60214793,139.67,139.63,9.12]
[1763250658368,0.67,139.66,139.63,9.12]
[1763250658952,0.67,139.66,139.63,8.46]
[1763250659170,10.60214793,139.67,139.64,0.66]
[1763250660247,0.67,139.66,139.64,0.66]
[1763250660446,0.67,139.66,139.63,9.12]
[1763250661172,0.67,139.66,139.64,0.66]
[1763250661658,7.83056692,139.66,139.63,9.12]
[1763250662952,0.67,139.65,139.63,8.46]
[1763250663157,0.67,139.65,139.59,9.78882769]
[1763250663158,33.88348506,139.64,139.59,0.66]
[1763250663368,2.77228506,139.62,139.59,0.66]
[1763250664267,33.88348506,139.64,139.59,10.5959931]
[1763250664468,34.55348506,139.64,139.6,0.66]
[1763250665460,41.71480186,139.64,139.6,0.66]
[1763250667381,3.44228506,139.63,139.6,0.66]
[1763250667963,3.44228506,139.63,139.6,7.82327574]
[1763250668165,2.77228506,139.63,139.6,7.82327574]
[1763250668484,2.77228506,139.63,139.61,0.66]
[1763250669062,2.77228506,139.64,139.61,0.66]
[1763250670763,2.77228506,139.64,139.61,7.82260579]
[1763250671265,2.77228506,139.64,139.62,0.66]
[1763250673187,2.77228506,139.64,139.62,7.82225561]
[1763250673379,25.42348506,139.65,139.62,7.82225561]
[1763250673570,33.2743406,139.65,139.62,0.68]
[1763250673885,26.11348506,139.65,139.62,7.84221531]
[1763250674293,33.27425119,139.65,139.62,0.68]
[1763250676371,2.77228506,139.63,139.59,2.77228506]
[1763250676664,2.77228506,139.63,139.59,9.14]
[1763250676875,2.77228506,139.63,139.59,8.46]
[1763250677063,3.46228506,139.63,139.6,0.68]
[1763250678189,10.62434005,139.63,139.6,0.68]
[1763250679006,3.46228506,139.62,139.59,9.14]
[1763250679795,3.46228506,139.62,139.59,8.46]
[1763250680099,3.46228506,139.62,139.6,0.68]
[1763250680481,3.46228506,139.62,139.59,16.30380919]
[1763250680990,3.46228506,139.61,139.58,7.84410227]
[1763250681304,2.77228506,139.6,139.58,16.30410227]
[1763250681482,0.69,139.6,139.58,8.46]
[1763250681672,0.69,139.6,139.58,9.14]
[1763250683302,1.77618082,139.61,139.59,0.68]
[1763250684071,0.69,139.6,139.57,9.6209319]
[1763250684268,1.77618082,139.59,139.56,4.41889599]
[1763250684592,1.77618082,139.59,139.56,12.87889599]
[1763250684899,2.46618082,139.59,139.56,12.87889599]
[1763250685598,2.46618082,139.59,139.56,20.04415643]
[1763250686874,1.77618082,139.58,139.56,3.73889599]
[1763250687078,1.77618082,139.57,139.56,3.73889599]
[1763250687279,2.46618082,139.57,139.56,3.73889599]
[1763250687487,2.46618082,139.57,139.55,7.1656557]
[1763250688076,111.36355308,139.6,139.55,7.1656557]
[1763250688272,2.46618082,139.58,139.55,7.8456557]
[1763250688473,2.46618082,139.58,139.55,16.3056557]
[1763250689276,105.97618082,139.6,139.56,2.45618082]
[1763250689804,105.97618082,139.6,139.57,0.68]
[1763250689805,106.66618082,139.6,139.57,0.68]
[1763250691802,106.66618082,139.6,139.57,7.84447637]
[1763250691996,105.97618082,139.6,139.57,7.84447637]
[1763250692201,106.66618082,139.6,139.57,7.84447637]
[1763250692392,105.97618082,139.6,139.57,7.84447637]
[1763250692592,0.69,139.59,139.57,7.84447637]
[1763250692992,106.66618082,139.6,139.57,7.84447637]
[1763250694082,0.69,139.59,139.57,7.84447637]
[1763250694285,0.69,139.59,139.57,7.16447637]
[1763250695202,106.66618082,139.6,139.57,7.84447637]
[1763250695710,0.69,139.59,139.57,7.84447637]
[1763250695910,104.89,139.6,139.57,16.30447637]
[1763250696230,106.66618082,139.6,139.57,16.30447637]
[1763250696602,105.97618082,139.6,139.57,16.30447637]
[1763250696791,0.69,139.59,139.57,16.30447637]
[1763250697218,0.69,139.59,139.57,15.62447637]
[1763250697886,105.97618082,139.6,139.57,16.30447637]
[1763250698109,106.66618082,139.6,139.57,16.30447637]
[1763250698718,0.69,139.59,139.57,16.30447637]
[1763250699320,0.69,139.59,139.57,15.62447637]
[1763250700114,0.69,139.59,139.57,16.30447637]
[1763250700810,106.66618082,139.6,139.57,16.30447637]
[1763250701113,0.69,139.59,139.57,16.30447637]
[1763250702208,0.69,139.59,139.57,15.62447637]
[1763250704316,106.67618082,139.6,139.57,16.32447637]
[1763250704488,105.97618082,139.6,139.57,15.62447637]
[1763250704691,22.6512,139.62,139.58,2.47618082]
[1763250704999,23.3512,139.62,139.59,8.46]
[1763250705199,23.3512,139.62,139.59,9.16]
[1763250705716,0.7,139.64,139.6,2.47618082]
[1763250705886,23.3512,139.64,139.6,2.47618082]
[1763250706094,25.12738082,139.64,139.61,0.7]
[1763250706694,25.12738082,139.64,139.61,9.16]
[1763250707418,32.28870178,139.64,139.61,9.16]
[1763250707602,22.6512,139.64,139.61,17.39895999]
[1763250707796,22.6512,139.64,139.62,0.7]
[1763250708097,22.6512,139.64,139.62,2.47618082]
[1763250708704,104.9,139.65,139.62,2.47618082]
[1763250709307,104.9,139.65,139.63,8.46]
[1763250712305,104.2,139.65,139.63,9.16]
[1763250714128,104.2,139.65,139.63,16.32172434]
[1763250716415,104.2,139.65,139.64,2.47618082]
[1763250716617,22.6512,139.66,139.64,0.7]
[1763250716823,23.3512,139.66,139.64,0.7]
[1763250717639,22.6512,139.66,139.64,0.7]
[1763250718225,2.47618082,139.67,139.64,0.7]
[1763250718429,25.12738082,139.67,139.64,7.86115434]
[1763250718735,0.7,139.66,139.64,7.86115434]
[1763250719550,2.47618082,139.66,139.63,9.16]
[1763250720526,2.47618082,139.66,139.62,1.77618082]
[1763250720527,1.77618082,139.64,139.61,8.46]
[1763250720729,32.28727837,139.67,139.62,2.47618082]
[1763250720915,1.77618082,139.65,139.62,8.46]
[1763250721429,0.7,139.64,139.62,8.46]
[1763250722132,0.7,139.65,139.62,9.16]
[1763250722829,7.86092898,139.65,139.62,9.16]
[1763250723840,0.7,139.65,139.62,16.32226528]
[1763250726432,32.28724886,139.67,139.63,0.7]
[1763250726730,0.7,139.66,139.63,0.7]
[1763250726938,0.7,139.66,139.62,18.0984461]
[1763250727106,2.47618082,139.66,139.62,18.0984461]
[1763250727310,0.7,139.65,139.62,18.0984461]
[1763250728740,0.7,139.65,139.62,17.3984461]
[1763250729039,0.7,139.65,139.62,18.0984461]
[1763250729544,1.77618082,139.66,139.63,0.7]
[1763250729732,2.47618082,139.66,139.63,0.7]
[1763250730721,32.28724886,139.67,139.63,7.8613267]
[1763250730926,29.81106804,139.67,139.63,9.63750752]
[1763250731142,32.28724886,139.67,139.64,0.7]
[1763250731832,31.58724886,139.67,139.64,0.7]
[1763250732035,0.7,139.66,139.64,0.7]
[1763250734845,22.6512,139.67,139.64,7.86113884]
[1763250735039,1.77618082,139.68,139.64,16.32113884]
[1763250735241,10.91618082,139.69,139.65,0.67]
[1763250735436,33.56738082,139.69,139.65,0.67]
[1763250735621,0.68,139.69,139.65,2.44618082]
[1763250735821,106.65618082,139.7,139.65,2.44618082]
[1763250736045,0.68,139.69,139.66,0.67]
[1763250736238,0.68,139.69,139.66,16.28985806]
[1763250737944,1.77618082,139.72,139.67,2.44618082]
[1763250738164,10.23618082,139.73,139.68,10.90618082]
[1763250738365,33.56738082,139.73,139.69,0.67]
[1763250738573,2.45618082,139.73,139.69,0.67]
[1763250738945,25.10738082,139.73,139.69,0.67]
[1763250739366,2.45618082,139.73,139.69,0.67]
[1763250739540,25.10738082,139.73,139.69,0.67]
[1763250739863,23.3312,139.73,139.7,15.61819613]
[1763250740369,23.3312,139.73,139.7,16.28819613]
[1763250740568,22.6512,139.72,139.7,16.28819613]
[1763250740947,0.68,139.73,139.7,16.28819613]
[1763250743061,23.3312,139.74,139.71,0.67]
[1763250743263,23.3312,139.74,139.71,2.44618082]
[1763250743657,23.3312,139.74,139.72,0.67]
[1763250743858,22.6512,139.74,139.72,9.13]
[1763250744060,113.81146706,139.76,139.72,9.13]
[1763250744369,0.68,139.75,139.72,16.28694924]
[1763250745548,3.44924934,139.75,139.72,16.28694924]
[1763250745780,2.76924934,139.74,139.72,8.46]
[1763250746082,3.44924934,139.75,139.72,16.28698289]
[1763250746685,0.68,139.75,139.72,16.28698289]
[1763250754370,0.68,139.75,139.72,15.61698289]
[1763250754571,2.76924934,139.73,139.68,7.82922107]
[1763250754777,2.76924934,139.73,139.69,0.67]
[1763250754976,0.68,139.72,139.69,0.67]
[1763250755353,0.68,139.72,139.7,7.15819613]
[1763250755755,7.15582319,139.75,139.7,15.61819613]
[1763250755974,0.68,139.74,139.71,0.67]
[1763250757063,0.68,139.74,139.72,7.15717148]
[1763250759260,3.44924934,139.74,139.72,7.15717148]
[1763250760185,0.68,139.73,139.71,7.15768377]
[1763250760981,0.68,139.73,139.71,7.82768377]
[1763250761487,3.44924934,139.73,139.7,7.15807222]
[1763250761659,2.76924934,139.72,139.7,15.61807222]
[1763250761997,3.44924934,139.72,139.7,15.61807222]
[1763250762184,0.68,139.71,139.7,15.61807222]
[1763250762885,3.44924934,139.72,139.7,15.61807222]
[1763250763466,0.68,139.72,139.7,15.61807222]
[1763250764070,9.92593422,139.73,139.7,16.33807222]
[1763250764071,10.59593422,139.73,139.7,16.33807222]
[1763250764690,3.43924934,139.73,139.7,16.33807222]
[1763250767673,0.67,139.73,139.7,16.33807222]
[1763250778479,3.43924934,139.73,139.7,15.61807222]
[1763250779005,0.67,139.72,139.7,15.61807222]
[1763250780705,2.76924934,139.74,139.7,15.61807222]
[1763250781010,0.67,139.73,139.7,15.61807222]
[1763250782810,3.43924934,139.73,139.7,15.61807222]
[1763250783324,0.67,139.72,139.7,15.61807222]
[1763250785732,9.92546771,139.74,139.7,15.61807222]
[1763250785733,0.67,139.73,139.7,16.33807222]
[1763250786714,0.67,139.73,139.7,15.61807222]
[1763250786903,135.3112,139.76,139.71,0.72]
[1763250787225,0.67,139.74,139.71,0.72]
[1763250788122,0.67,139.74,139.71,7.87726521]
[1763250794916,0.67,139.74,139.71,7.15726521]
[1763250795148,0.68,139.74,139.72,7.85695159]
[1763250795315,0.68,139.74,139.72,7.15695159]
[1763250797527,0.68,139.74,139.72,7.85695159]
[1763250797701,0.68,139.74,139.72,7.15695159]
[1763250801139,0.68,139.74,139.72,0.7]
[1763250801312,0.68,139.75,139.71,27.82114254]
[1763250801511,0.68,139.75,139.72,0.7]
[1763250801834,3.44924934,139.75,139.72,0.7]
[1763250802145,3.44924934,139.75,139.72,9.16]
[1763250802330,0.68,139.74,139.72,8.46]
[1763250803508,0.68,139.74,139.72,15.61713398]
[1763250803917,0.68,139.74,139.72,16.31713398]
[1763250808725,0.68,139.74,139.72,15.61713398]
[1763250810154,0.68,139.77,139.73,0.7]
[1763250810322,0.68,139.76,139.73,0.7]
[1763250810524,2.4524671,139.76,139.73,0.7]
[1763250811048,0.68,139.75,139.73,0.7]
[1763250811429,0.68,139.75,139.73,9.16]
[1763250812254,0.68,139.75,139.73,0.7]
[1763250812454,0.68,139.75,139.73,9.16]
[1763250813240,0.68,139.76,139.73,7.8565395]
[1763250813439,0.68,139.76,139.73,16.3165395]
[1763250813762,0.68,139.76,139.74,0.7]
[1763250816662,7.83518531,139.76,139.73,16.3165395]
[1763250817263,7.83518531,139.76,139.73,7.8565395]
[1763250817444,7.83518531,139.76,139.73,16.2965395]
[1763250819070,7.83518531,139.76,139.74,0.7]
[1763250819277,7.83518531,139.76,139.73,16.2965395]
[1763250820364,0.68,139.76,139.74,0.7]
[1763250822677,0.68,139.76,139.73,16.2965395]
[1763250823174,0.68,139.76,139.73,15.5965395]
[1763250823343,2.4524671,139.76,139.73,16.3165395]
[1763250823545,2.4524671,139.76,139.73,15.5965395]
[1763250823747,2.4524671,139.76,139.74,0.72]
[1763250824271,0.68,139.76,139.74,7.87614372]
[1763250824472,15.5965395,139.77,139.74,7.87614372]
[1763250824662,0.67,139.77,139.75,0.72]
[1763250825459,0.67,139.77,139.74,7.15614372]
[1763250825782,0.67,139.77,139.74,29.36688479]
[1763250826846,0.67,139.77,139.75,7.8754799]
[1763250828172,0.67,139.77,139.75,7.1554799]
[1763250828979,0.67,139.79,139.76,0.72]
[1763250829166,2.4424671,139.79,139.77,8.44]
[1763250830081,2.4424671,139.79,139.77,15.59334066]
[1763250835075,2.4424671,139.79,139.77,22.74795152]
[1763250835383,8.92610097,139.79,139.77,15.59334066]
[1763250835561,2.4424671,139.78,139.77,8.44]
[1763250836384,2.4424671,139.78,139.76,25.04415957]
[1763250836758,2.4424671,139.78,139.76,25.76415957]
[1763250836958,2.4424671,139.77,139.75,8.44]
[1763250837159,1.7724671,139.76,139.72,9.16]
[1763250837369,1.7724671,139.75,139.72,9.16]
[1763250837566,2.4424671,139.75,139.73,0.72]
[1763250837870,20.33155475,139.75,139.73,0.72]
[1763250838267,20.33155475,139.75,139.73,7.87665927]
[1763250838669,18.55908765,139.75,139.73,7.87665927]
[1763250843187,18.55908765,139.75,139.72,18.08945088]
[1763250843394,0.67,139.74,139.71,7.15742909]
[1763250843581,1.7724671,139.73,139.71,7.15742909]
[1763250843766,10.70058895,139.73,139.71,7.15742909]
[1763250844092,10.70058895,139.73,139.7,8.46]
[1763250844093,0.67,139.72,139.7,15.61798691]
[1763250844268,2.4424671,139.73,139.7,16.33798691]
[1763250844466,11.37058895,139.73,139.71,0.72]
[1763250845374,11.37058895,139.73,139.71,7.87749815]
[1763250848500,10.70058895,139.73,139.71,7.87749815]
[1763250848806,10.70058895,139.73,139.7,15.61794566]
[1763250849091,2.4424671,139.72,139.7,8.46]
[1763250849484,1.7724671,139.72,139.7,8.46]
[1763250849692,0.67,139.71,139.7,8.46]
[1763250852095,19.6297282,139.72,139.7,8.46]
[1763250852394,20.2997282,139.72,139.7,8.46]
[1763250853197,18.5272611,139.72,139.7,8.46]
[1763250855889,18.5272611,139.72,139.7,15.61812254]
[1763250856193,18.5272611,139.72,139.7,16.33812254]
[1763250856403,18.5272611,139.72,139.7,15.61812254]
[1763250856580,18.5272611,139.72,139.7,16.33812254]
[1763250859485,17.8572611,139.72,139.7,16.33812254]
[1763250859882,18.5772611,139.72,139.7,16.33812254]
[1763250860402,18.5772611,139.72,139.7,15.61812254]
[1763250860583,18.5772611,139.72,139.7,16.33812254]
[1763250866612,0.72,139.72,139.7,16.33812254]
[1763250869004,0.72,139.72,139.7,8.46]
[1763250869392,22.06775266,139.72,139.7,8.46]
[1763250869598,24.83824422,139.72,139.7,9.18]
[1763250870693,22.06775266,139.72,139.7,9.18]
[1763250872016,24.83824422,139.72,139.7,8.46]
[1763250873022,24.83824422,139.72,139.7,9.18]
[1763250874518,22.06775266,139.72,139.7,9.18]
[1763250876718,22.06775266,139.72,139.7,8.46]
[1763250877020,22.06775266,139.72,139.7,9.18]
[1763250877400,22.06775266,139.72,139.7,8.46]
[1763250877401,3.49049156,139.71,139.7,8.46]
[1763250877825,3.49049156,139.71,139.68,15.61915624]
[1763250878006,0.72,139.7,139.68,16.33915624]
[1763250880233,0.72,139.7,139.68,15.61915624]
[1763250880398,0.72,139.7,139.68,8.46]
[1763250880725,0.72,139.7,139.68,15.61910942]
[1763250880906,0.72,139.7,139.68,16.33910942]
[1763250882126,3.49049156,139.7,139.68,16.33910942]
[1763250883608,3.46049156,139.69,139.65,0.68]
[1763250883832,2.77049156,139.66,139.62,0.68]
[1763250884008,2.77049156,139.65,139.63,8.46]
[1763250884210,2.77049156,139.64,139.63,8.46]
[1763250884742,3.46049156,139.64,139.63,8.46]
[1763250888736,33.27312979,139.64,139.58,0.68]
[1763250888942,2.77049156,139.6,139.56,7.16537689]
[1763250889130,2.77049156,139.6,139.57,8.46]
[1763250889319,3.46049156,139.6,139.57,9.14]
[1763250889929,10.62361308,139.61,139.58,0.68]
[1763250890240,0.69,139.6,139.58,0.68]
[1763250891339,9.93361308,139.61,139.58,0.68]
[1763250891525,0.69,139.6,139.58,0.68]
[1763250893939,9.93361308,139.61,139.58,0.68]
[1763250894130,3.46049156,139.61,139.58,7.84429567]
[1763250895154,7.162496,139.62,139.58,7.16429567]
[1763250895359,2.77049156,139.62,139.59,0.68]
[1763250895558,0.69,139.62,139.59,9.14]
[1763250896330,0.69,139.62,139.59,16.30373532]
[1763250896532,7.8523229,139.62,139.59,9.14]
[1763250896742,10.62281446,139.62,139.59,9.14]
[1763250897842,0.69,139.62,139.59,16.30383416]
[1763250898046,7.85239509,139.62,139.59,9.14]
[1763250898224,3.46049156,139.62,139.59,16.3037401]
[1763250898549,3.46049156,139.62,139.6,0.68]
[1763250899646,2.77049156,139.62,139.6,0.68]
[1763250900157,3.46049156,139.62,139.6,0.68]
[1763250900337,3.46049156,139.62,139.59,15.6237401]
[1763250900532,3.46049156,139.62,139.6,0.68]
[1763250901252,3.46049156,139.62,139.59,16.3037401]
[1763250901432,10.62284793,139.62,139.59,16.3037401]
[1763250902432,2.77049156,139.61,139.59,16.3037401]
[1763250902633,2.77049156,139.61,139.59,9.14]
[1763250903549,3.46049156,139.61,139.59,9.14]
[1763250903867,3.46049156,139.6,139.57,7.84463356]
[1763250904079,0.69,139.6,139.55,9.24]
[1763250904368,25.06990532,139.61,139.55,9.24]
[1763250904369,2.77049156,139.58,139.57,0.68]
[1763250904665,3.46049156,139.59,139.56,0.68]
[1763250904957,2.77049156,139.58,139.56,0.68]
[1763250905365,3.46049156,139.59,139.56,0.68]
[1763250905859,3.46049156,139.59,139.56,7.84503406]
[1763250906065,2.77049156,139.61,139.57,11.91049156]
[1763250906453,2.77049156,139.61,139.58,0.68]
[1763250906653,3.46049156,139.61,139.58,0.68]
[1763250907243,2.77049156,139.6,139.59,7.16383695]
[1763250907448,3.46049156,139.6,139.56,0.68]
[1763250907755,2.77049156,139.58,139.56,8.46]
[1763250907942,3.46049156,139.59,139.56,16.3052444]
[1763250908566,0.69,139.62,139.57,0.68]
[1763250908764,104.89,139.72,139.65,22.6512]
[1763250908967,2.77049156,139.75,139.7,2.77049156]
[1763250909167,2.77049156,139.73,139.71,8.46]
[1763250909368,2.77049156,139.72,139.69,16.29852288]
[1763250909672,2.77049156,139.71,139.69,15.61852288]
[1763250909973,3.46049156,139.71,139.69,15.61852288]
[1763250910271,2.77049156,139.71,139.69,15.61852288]
[1763250910457,2.77049156,139.72,139.69,16.29852288]
[1763250910653,2.77049156,139.71,139.69,8.46]
[1763250910858,3.46049156,139.71,139.68,7.15882628]
[1763250912563,3.46049156,139.71,139.68,7.85882628]
[1763250912764,0.69,139.71,139.68,7.85882628]
[1763250914474,0.69,139.71,139.68,10.62931784]
[1763250915278,0.69,139.71,139.68,7.85882628]
[1763250916159,0.69,139.71,139.68,10.62931784]
[1763250918476,0.69,139.71,139.68,7.85882628]
[1763250918677,0.69,139.71,139.68,10.62931784]
[1763250925585,22.6512,139.73,139.69,0.69]
[1763250925885,23.3312,139.73,139.7,2.77049156]
[1763250926282,0.68,139.72,139.7,2.77049156]
[1763250926486,0.68,139.72,139.69,11.92049156]
[1763250926986,0.68,139.72,139.69,10.23286768]
[1763250927166,22.6512,139.73,139.7,0.69]
[1763250927373,23.3312,139.73,139.7,0.69]
[1763250927774,0.68,139.72,139.71,7.15768377]
[1763250927970,0.68,139.77,139.71,17.39055145]
[1763250928287,0.68,139.77,139.72,2.46286768]
[1763250928288,0.68,139.76,139.72,2.46286768]
[1763250928582,2.45286768,139.76,139.73,8.46]
[1763250928963,2.45286768,139.76,139.73,9.15]
[1763250929167,2.45286768,139.76,139.73,16.30622319]
[1763250929889,0.68,139.76,139.73,16.30622319]
[1763250930960,0.68,139.76,139.73,18.07909087]
[1763250934167,1.77286768,139.74,139.7,1.77286768]
[1763250934477,1.77286768,139.73,139.71,8.46]
[1763250934678,1.77286768,139.74,139.71,8.46]
[1763250934997,2.45286768,139.75,139.71,8.46]
[1763250935171,0.68,139.74,139.71,8.46]
[1763250936194,0.68,139.74,139.71,15.61728074]
[1763250936879,0.68,139.74,139.71,16.30728074]
[1763250937770,0.68,139.74,139.71,17.39014842]
[1763250938000,23.3312,139.76,139.72,2.46286768]
[1763250938172,23.3312,139.76,139.73,15.61622601]
[1763250938488,0.68,139.75,139.73,15.61622601]
[1763250939093,0.68,139.75,139.73,8.46]
[1763250939268,0.68,139.75,139.73,15.61654805]
[1763250940101,0.68,139.75,139.73,16.30654805]
[1763250940288,0.68,139.75,139.73,15.61654805]
[1763250940584,23.3312,139.76,139.73,16.30654805]
[1763250940802,0.68,139.75,139.73,15.61654805]
[1763250940993,24.42406768,139.76,139.73,15.61654805]
[1763250941178,25.10406768,139.76,139.73,16.30654805]
[1763250942875,25.10406768,139.76,139.73,15.61654805]
[1763250942876,2.45286768,139.75,139.73,15.61654805]
[1763250943898,0.69,139.74,139.73,8.46]
[1763250944394,2.46286768,139.75,139.73,8.46]
[1763250946195,2.46286768,139.75,139.73,15.61663796]
[1763250948802,1.77286768,139.75,139.73,15.61663796]
[1763250949006,2.46286768,139.75,139.72,7.15698075]
[1763250949211,2.46286768,139.75,139.73,8.46]
[1763250949392,0.69,139.74,139.73,8.46]
[1763250949699,2.46286768,139.77,139.73,9.15]
[1763250950086,0.69,139.76,139.73,9.15]
[1763250951521,0.69,139.76,139.73,16.30639639]
[1763250954526,29.80555487,139.78,139.74,0.69]
[1763250954718,0.69,139.77,139.74,0.69]
[1763250955399,2.46286768,139.77,139.73,34.19804456]
[1763250955585,2.46286768,139.77,139.73,35.97091224]
[1763250955786,0.69,139.76,139.73,35.97091224]
[1763250956206,0.69,139.76,139.73,9.15]
[1763250956611,0.69,139.76,139.73,16.3066464]
[1763250956792,29.80542867,139.78,139.74,0.69]
[1763250956998,29.80542867,139.78,139.73,15.6166464]
[1763250956999,0.69,139.76,139.73,16.3066464]
[1763250959614,2.46286768,139.76,139.73,9.15]
[1763250959825,2.46286768,139.76,139.73,15.61659845]
[1763250960116,0.69,139.76,139.74,0.69]
[1763250960510,0.69,139.76,139.74,7.84612203]
[1763250961615,2.46286768,139.76,139.73,15.61644972]
[1763250961801,2.46286768,139.76,139.73,16.30644972]
[1763250962233,2.46286768,139.76,139.71,19.66646429]
[1763250962234,1.77286768,139.74,139.64,35.80451216]
[1763250962393,1.77286768,139.72,139.68,0.69]
[1763250962594,1.77286768,139.72,139.69,8.46]
[1763250962791,0.69,139.71,139.69,8.46]
[1763250962991,0.69,139.71,139.69,9.15]
[1763250963210,0.69,139.73,139.7,2.46286768]
[1763250963496,2.46286768,139.74,139.71,7.15768377]
[1763250963712,2.46286768,139.74,139.71,7.84768377]
[1763250963713,1.77286768,139.74,139.71,7.84768377]
[1763250963900,2.46286768,139.73,139.69,8.46]
[1763250964105,0.69,139.73,139.69,18.08156085]
[1763250964309,0.69,139.72,139.69,18.08156085]
[1763250964916,1.77286768,139.74,139.7,0.69]
[1763250965099,0.69,139.73,139.7,0.69]
[1763250965595,0.69,139.73,139.69,10.92286768]
[1763250966202,0.69,139.73,139.69,18.08135939]
[1763250966519,2.46286768,139.73,139.69,16.30849171]
[1763250966892,0.69,139.72,139.69,16.30849171]
[1763250967819,0.69,139.72,139.69,15.61849171]
[1763250967999,24.42406768,139.73,139.7,0.69]
[1763250968193,0.69,139.72,139.69,16.30849171]
[1763250968599,0.69,139.72,139.7,0.69]
[1763250969015,0.69,139.72,139.69,15.61849171]
[1763250969220,0.69,139.72,139.69,16.30849171]
[1763250970111,0.69,139.72,139.7,7.8481201]
[1763250970720,0.69,139.72,139.7,7.1581201]
[1763250974230,22.6512,139.73,139.7,7.8681201]
[1763250974433,23.3212,139.73,139.7,7.8681201]
[1763250975414,22.6512,139.73,139.7,7.8681201]
[1763250975725,0.67,139.72,139.7,7.1581201]
[1763250977024,22.6512,139.73,139.7,7.8681201]
[1763250977227,23.3212,139.73,139.7,7.8681201]
[1763250979025,22.6512,139.73,139.7,7.1581201]
[1763250979331,0.67,139.77,139.72,1.77286768]
[1763250979530,0.67,139.77,139.73,10.23286768]
[1763250979715,23.3212,139.77,139.73,10.23286768]
[1763250979905,23.3212,139.77,139.73,10.94286768]
[1763250980202,0.67,139.76,139.73,10.94286768]
[1763250980404,0.67,139.76,139.74,7.15614713]
[1763250981624,23.3212,139.76,139.74,7.15614713]
[1763250986413,9.5971126,139.78,139.75,0.71]
[1763250986611,1.77286768,139.77,139.73,0.71]
[1763250986844,1.77286768,139.76,139.73,8.46]
[1763250987049,1.77286768,139.75,139.73,8.46]
[1763250987527,2.44286768,139.75,139.73,9.17]
[1763250988039,2.44286768,139.75,139.73,16.32652098]
[1763250988873,3.43936693,139.75,139.73,16.32652098]
[1763250989256,2.76936693,139.75,139.72,7.15685273]
[1763250989453,2.76936693,139.73,139.7,15.61819613]
[1763250989989,3.43936693,139.73,139.7,16.32819613]
[1763250990257,3.43936693,139.73,139.71,0.71]
[1763250990766,3.43936693,139.73,139.7,16.32819613]
[1763250993051,2.76936693,139.73,139.7,15.61819613]
[1763250993258,2.76936693,139.71,139.69,15.61846588]
[1763250993773,3.43936693,139.71,139.69,15.61846588]
[1763250994178,3.43936693,139.71,139.69,16.32846588]
[1763250994775,2.76936693,139.72,139.69,16.32846588]
[1763250994967,3.43936693,139.72,139.69,16.32846588]
[1763250998077,0.67,139.72,139.69,16.32846588]
[1763250998258,26.09056693,139.73,139.7,0.71]
[1763250998462,23.3212,139.73,139.7,0.71]
[1763250998773,26.09056693,139.73,139.7,0.71]
[1763250999072,0.67,139.72,139.7,0.71]
[1763250999466,0.67,139.72,139.7,7.86800808]
[1763250999664,0.67,139.72,139.7,7.15800808]
[1763251000869,25.42056693,139.73,139.7,7.86800808]
[1763251001066,0.67,139.72,139.7,7.86800808]
[1763251001786,0.67,139.72,139.7,7.15800808]
[1763251002884,0.67,139.72,139.69,16.32855129]
[1763251003978,0.67,139.72,139.69,15.61855129]
[1763251004283,0.67,139.72,139.7,7.15811781]
[1763251009970,0.67,139.72,139.7,7.82811781]
[1763251010976,0.67,139.72,139.7,7.15811781]
[1763251011172,0.67,139.72,139.7,7.82811781]
[1763251011373,26.08056693,139.73,139.7,7.82811781]